bitfinex-derivatives/quotes_ETHF0:USTF0_20240917
["timestamp","ask_amount","ask_price","bid_price","bid_amount"]
[1726564106422,0.83277,2311.4,2311.2,0.43268]
[1726564106423,0.43268,2311.3,2311.2,0.43268]
[1726564107427,0.4327,2311.2,2311.1,0.4327]
[1726564107824,0.43271,2311.1,2311.0,0.83192]
[1726564108022,0.3965,2311.1,2311.0,0.83192]
[1726564108224,0.82921,2311.1,2311.0,0.83192]
[1726564110431,0.43269,2311.2,2311.1,0.4327]
[1726564110629,0.83509,2311.2,2311.1,3.92487861]
[1726564112522,0.83509,2311.2,2311.1,3.49217861]
[1726564112720,0.83509,2311.2,2311.1,2.92467865]
[1726564113131,0.83509,2311.2,2311.1,3.49217861]
[1726564114424,0.43269,2311.2,2311.1,3.49217861]
[1726564114623,3.2078,2311.3,2311.1,3.92488861]
[1726564114833,3.2078,2311.3,2311.2,2.92451348]
[1726564114834,3.64047,2311.3,2311.2,2.92451348]
[1726564115024,4.04307,2311.3,2311.2,1.13475378]
[1726564115332,4.04307,2311.3,2311.2,2.92446994]
[1726564115633,4.04307,2311.3,2311.2,1.13475378]
[1726564116133,4.04307,2311.3,2311.2,2.9244853]
[1726564116431,4.04307,2311.3,2311.2,3.92484043]
[1726564116626,4.04307,2311.3,2311.2,3.35713123]
[1726564117232,4.04307,2311.3,2311.2,2.92439704]
[1726564117451,4.04307,2311.3,2311.2,2.92442997]
[1726564117737,4.04307,2311.3,2311.2,3.35711942]
[1726564118521,4.04307,2311.3,2311.2,1.5673879]
[1726564118727,4.04307,2311.3,2311.1,0.43269]
[1726564118728,0.4327,2311.2,2311.1,0.43269]
[1726564119732,0.4327,2311.2,2311.1,4.75989]
[1726564120134,0.83528,2311.3,2311.2,0.43269]
[1726564120428,0.43268,2311.3,2311.2,0.43269]
[1726564121338,0.8064,2311.4,2311.0,5.93883]
[1726564121530,0.43268,2311.3,2311.2,0.43267]
[1726564125736,0.43268,2311.3,2311.2,3.92403608]
[1726564126628,0.43268,2311.3,2311.2,3.92403389]
[1726564129343,0.43267,2311.4,2311.3,0.43266]
[1726564129536,0.43267,2311.4,2311.3,3.76646994]
[1726564129749,0.43267,2311.4,2311.3,4.18206994]
[1726564131357,0.43267,2311.4,2311.3,3.0478675]
[1726564131559,1.08161,2311.5,2311.4,0.43264]
[1726564131560,0.43265,2311.5,2311.4,0.43264]
[1726564131766,0.43264,2311.5,2311.4,3.92376641]
[1726564132653,1.49144,2311.7,2311.5,0.43263]
[1726564132654,0.43263,2311.6,2311.5,0.43263]
[1726564132864,0.43263,2311.6,2311.5,1.56642286]
[1726564133256,0.101,2311.9,2311.8,0.43258]
[1726564133459,0.4181,2312.0,2311.9,0.43256]
[1726564133662,0.85065,2312.0,2311.9,1.51912407]
[1726564133862,0.85065,2312.0,2311.9,0.3857]
[1726564134156,0.43256,2311.9,2311.8,1.68258]
[1726564136156,0.43256,2311.9,2311.8,0.43258]
[1726564136454,0.43256,2311.9,2311.7,2.0436]
[1726564136663,0.43256,2311.9,2311.7,2.47618]
[1726564136857,0.43256,2311.9,2311.8,0.43258]
[1726564138164,0.43256,2311.9,2311.6,3.2078]
[1726564138165,0.4326,2311.7,2311.6,3.2078]
[1726564138357,1.87026,2311.8,2311.5,0.43262]
[1726564138659,1.87026,2311.8,2311.3,6.37539]
[1726564138861,0.82011,2311.7,2311.6,0.43262]
[1726564139062,0.43262,2311.6,2311.5,0.43263]
[1726564139359,0.82011,2311.7,2311.6,0.43262]
[1726564139564,0.43262,2311.6,2311.5,0.43263]
[1726564139963,0.82011,2311.7,2311.6,0.43262]
[1726564140164,0.43262,2311.6,2311.5,0.43262]
[1726564140666,0.82011,2311.7,2311.6,0.43262]
[1726564141564,0.43262,2311.6,2311.4,1.13342407]
[1726564141767,1.46904,2311.7,2311.3,1.96932407]
[1726564141966,0.43265,2311.5,2311.4,0.43265]
[1726564142160,0.43262,2311.6,2311.5,0.43262]
[1726564142668,0.82011,2311.7,2311.6,0.43262]
[1726564144071,0.43262,2311.6,2311.5,1.68262]
[1726564144567,0.101,2312.2,2311.5,8.7842]
[1726564144764,3.2078,2313.6,2312.6,0.43243]
[1726564144972,3.2078,2313.6,2312.9,1.12927187]
[1726564144973,1.6579,2313.6,2312.9,1.12927187]
[1726564145171,1.25,2313.4,2312.9,5.58707187]
[1726564145469,3.599,2313.5,2312.9,5.58707187]
[1726564145470,0.3912,2313.5,2313.2,1.25]
[1726564145766,0.3912,2313.5,2313.3,1.25]
[1726564145966,0.3884,2314.0,2313.2,3.2078]
[1726564146168,1.0178803,2313.9,2313.4,2.7]
[1726564146477,0.7991,2313.9,2313.2,5.9078]
[1726564146860,2.7,2313.7,2313.5,3.2078]
[1726564147172,3.2078,2313.7,2312.9,2.7]
[1726564147366,5.9078,2313.7,2313.2,3.2078]
[1726564147565,5.9078,2313.7,2312.8,5.9078]
[1726564147771,5.9078,2313.7,2313.2,3.2078]
[1726564148870,3.2078,2313.7,2313.2,3.2078]
[1726564149266,2.7,2313.6,2313.2,3.2078]
[1726564149466,0.7991,2313.9,2313.2,3.2078]
[1726564149879,2.7,2313.8,2313.2,3.2078]
[1726564150568,0.7991,2313.9,2313.6,3.2078]
[1726564150870,0.7991,2313.9,2313.3,6.7046]
[1726564152173,3.4991,2313.9,2313.3,4.0046]
[1726564152368,3.4991,2313.9,2313.6,3.2078]
[1726564152563,3.4991,2313.9,2313.3,4.0046]
[1726564152769,2.7,2313.5,2313.3,4.0046]
[1726564153076,5.9078,2313.7,2313.3,0.3921]
[1726564153477,5.9078,2313.7,2313.3,3.2078]
[1726564154474,3.2078,2313.7,2313.3,3.2078]
[1726564155666,3.2078,2313.7,2313.3,3.64008]
[1726564155870,3.2078,2313.7,2313.4,0.43228]
[1726564157172,3.2078,2313.7,2313.5,0.43225]
[1726564157368,3.2078,2313.7,2313.3,5.9078]
[1726564157571,3.2078,2313.7,2313.5,0.43225]
[1726564157769,3.2078,2313.7,2313.4,0.43228]
[1726564158166,3.2078,2313.7,2313.5,0.43226]
[1726564158574,3.2078,2313.7,2313.6,0.43224]
[1726564158976,0.7991,2313.9,2313.6,0.43224]
[1726564159275,3.6264,2314.3,2314.1,0.43215]
[1726564159480,3.2078,2314.3,2314.1,0.43215]
[1726564159780,3.2078,2314.3,2314.2,0.43213]
[1726564159976,3.2078,2314.3,2314.1,0.43214]
[1726564160171,3.2078,2314.3,2313.8,2.7]
[1726564160370,3.2078,2314.3,2314.2,0.43213]
[1726564160679,3.2078,2314.3,2314.0,5.9078]
[1726564160883,2.86853825,2314.8,2314.4,0.43209]
[1726564161179,0.387,2314.7,2314.3,3.2078]
[1726564161372,0.60011014,2314.7,2314.3,3.6399]
[1726564161569,0.60011014,2314.7,2314.3,3.2078]
[1726564161873,1.03215014,2314.7,2314.3,0.4321]
[1726564162270,1.03215014,2314.7,2314.2,0.43212]
[1726564162777,1.03215014,2314.7,2314.3,0.43211]
[1726564162975,0.43206,2314.6,2314.2,0.43212]
[1726564163482,1.03216014,2314.7,2314.3,0.4321]
[1726564163680,0.43206,2314.6,2314.3,0.4321]
[1726564164475,0.43208,2314.5,2314.2,0.43212]
[1726564164685,2.7,2314.3,2313.8,0.101]
[1726564164909,0.43221,2313.8,2313.6,0.101]
[1726564165074,0.43221,2313.8,2313.5,0.43226]
[1726564165276,2.7,2313.9,2313.6,0.43224]
[1726564165485,3.1322,2313.9,2313.6,0.43223]
[1726564165671,3.0887,2314.0,2313.4,3.2078]
[1726564165876,3.0887,2314.0,2313.5,0.43226]
[1726564165877,0.43222,2313.8,2313.5,0.43226]
[1726564166787,0.43222,2313.8,2313.6,0.43224]
[1726564167683,3.2078,2313.9,2313.4,3.2078]
[1726564167977,0.43222,2313.8,2313.6,0.43224]
[1726564168591,0.4322,2313.9,2313.7,0.43222]
[1726564168775,0.3887,2314.0,2313.4,2.7]
[1726564168981,0.43219,2313.9,2313.4,2.7]
[1726564169181,0.43219,2313.9,2313.7,0.43222]
[1726564169381,0.82088,2314.0,2313.8,0.43221]
[1726564169580,0.43219,2313.9,2313.7,0.43221]
[1726564170184,0.82088,2314.0,2313.8,0.43219]
[1726564170490,0.3887,2314.0,2313.9,0.43219]
[1726564170902,0.3947,2314.2,2314.0,0.43217]
[1726564171098,0.43215,2314.1,2314.0,0.43217]
[1726564171388,0.43215,2314.1,2313.9,3.63997]
[1726564171587,0.3947,2314.2,2313.9,3.63997]
[1726564171788,0.43217,2314.0,2313.9,3.63997]
[1726564171990,0.43216,2314.1,2313.9,3.63997]
[1726564172187,0.3947,2314.2,2313.9,3.2078]
[1726564172387,0.43215,2314.1,2313.9,3.63998]
[1726564172583,0.3947,2314.2,2313.9,3.63998]
[1726564172886,0.3947,2314.2,2313.7,0.43222]
[1726564172887,1.08043,2314.0,2313.7,0.43222]
[1726564173196,0.43224,2313.6,2313.5,3.2078]
[1726564173487,0.43228,2313.4,2313.1,3.2078]
[1726564173786,1.08071,2313.4,2313.1,3.64013]
[1726564173982,0.43235,2313.1,2313.0,0.43236]
[1726564174184,0.43235,2313.1,2312.8,3.2078]
[1726564174185,0.43237,2312.9,2312.8,3.2078]
[1726564174390,2.7,2312.9,2312.5,0.101]
[1726564174593,2.7,2312.9,2312.3,0.117]
[1726564174594,0.43247,2312.4,2312.2,0.101]
[1726564174793,0.43247,2312.4,2312.2,0.4325]
[1726564174999,0.43246,2312.5,2312.3,0.43248]
[1726564175205,0.43246,2312.5,2312.2,0.43249]
[1726564175381,0.43245,2312.5,2312.2,0.43249]
[1726564175885,0.43245,2312.5,2312.1,3.2078]
[1726564175886,2.7,2312.6,2312.1,3.2078]
[1726564176084,0.4003,2312.5,2312.2,0.43249]
[1726564176284,0.43244,2312.6,2312.2,3.1325]
[1726564176481,0.43244,2312.6,2312.2,0.4325]
[1726564176996,0.4003,2312.7,2312.1,3.2078]
[1726564177193,0.83272,2312.7,2312.2,3.13249]
[1726564177496,0.83272,2312.7,2312.3,0.43248]
[1726564177795,6.07633825,2312.9,2312.4,5.9078]
[1726564178099,0.43238,2312.9,2312.5,0.43243]
[1726564178406,0.43237,2313.0,2312.6,0.43243]
[1726564178589,0.43237,2313.0,2312.6,0.43242]
[1726564178789,2.86853825,2313.3,2312.9,3.13236]
[1726564178994,3.6017,2313.5,2313.1,2.7]
[1726564179187,4.03398,2313.5,2313.1,2.7]
[1726564179588,4.03398,2313.5,2313.0,0.4209]
[1726564179785,4.03398,2313.5,2313.0,3.6287]
[1726564180999,4.03397,2313.5,2313.0,4.06105]
[1726564181807,3.6017,2313.5,2313.1,0.43233]
[1726564182994,3.6017,2313.5,2313.0,6.9487]
[1726564183192,3.2078,2313.5,2313.0,6.9487]
[1726564183400,3.2078,2313.5,2313.3,0.43229]
[1726564183599,3.2078,2313.5,2313.2,0.43231]
[1726564185593,3.64006,2313.5,2313.2,0.43231]
[1726564186397,3.2078,2313.5,2313.2,0.43231]
[1726564186599,3.64007,2313.5,2313.2,0.43231]
[1726564187095,3.2078,2313.5,2313.0,3.6287]
[1726564187293,3.64007,2313.5,2313.2,0.43232]
[1726564187494,0.43229,2313.4,2313.0,3.6287]
[1726564187703,0.43229,2313.4,2313.1,0.43233]
[1726564187996,0.43229,2313.4,2313.0,3.6287]
[1726564188208,0.43229,2313.4,2313.2,0.43232]
[1726564188597,0.43229,2313.4,2313.1,0.43233]
[1726564188796,0.4323,2313.4,2313.0,3.6287]
[1726564188987,3.2078,2313.5,2313.1,0.43233]
[1726564188988,0.4323,2313.3,2313.1,0.43233]
[1726564189194,0.43231,2313.3,2313.0,4.06105]
[1726564189401,0.43233,2313.2,2313.0,0.85325]
[1726564189898,0.43231,2313.3,2313.1,0.43233]
[1726564190300,0.43231,2313.3,2313.0,0.85324]
[1726564190499,0.43231,2313.3,2313.1,0.43234]
[1726564191501,0.43232,2313.2,2313.0,0.85324]
[1726564191999,0.43231,2313.3,2313.1,0.43234]
[1726564194993,0.43232,2313.2,2313.1,0.43234]
[1726564195290,0.43231,2313.3,2313.1,0.43234]
[1726564195688,0.43232,2313.2,2313.1,0.43234]
[1726564195893,0.419,2313.4,2313.1,0.43234]
[1726564196090,0.4323,2313.3,2313.1,0.43234]
[1726564196399,0.43231,2313.3,2313.2,0.43231]
[1726564198909,0.43232,2313.2,2313.1,0.85603]
[1726564200409,0.43231,2313.3,2313.2,0.43231]
[1726564200794,0.43232,2313.2,2313.1,0.85602]
[1726564200999,0.43232,2313.2,2313.1,0.4237]
[1726564201201,1.51312,2313.2,2313.1,0.4237]
[1726564201504,0.43235,2313.1,2313.0,0.43235]
[1726564201705,5.404,2313.2,2313.1,0.43233]
[1726564201706,0.43233,2313.2,2313.1,0.43233]
[1726564202008,0.43234,2313.1,2313.0,0.43234]
[1726564205096,0.8431,2313.4,2313.0,0.43234]
[1726564205302,0.419,2313.4,2313.3,0.4323]
[1726564206311,3.64007,2313.5,2313.3,0.43229]
[1726564206613,3.2078,2313.5,2313.4,0.43228]
[1726564208009,0.43222,2313.7,2313.5,0.43225]
[1726564208213,0.3956,2313.8,2313.4,2.7]
[1726564208408,0.3956,2313.8,2313.7,0.43222]
[1726564208802,3.30069825,2314.1,2313.9,0.43217]
[1726564209013,0.4178,2314.2,2313.8,0.43219]
[1726564209014,0.43218,2314.0,2313.8,0.43219]
[1726564209204,0.43216,2314.1,2313.9,0.43219]
[1726564209608,4.46044,2314.2,2313.7,0.398]
[1726564209804,0.43215,2314.1,2313.9,0.43217]
[1726564210305,0.43215,2314.1,2313.7,0.398]
[1726564210306,0.4027,2314.2,2314.0,0.43217]
[1726564210506,0.43211,2314.3,2314.1,0.43215]
[1726564210706,0.83479,2314.5,2314.3,0.4321]
[1726564210917,0.43209,2314.4,2314.2,0.83482]
[1726564211105,0.43211,2314.3,2314.0,3.2078]
[1726564211301,0.43211,2314.3,2314.1,0.43215]
[1726564212109,0.43209,2314.4,2314.2,0.43213]
[1726564212521,0.43211,2314.4,2314.2,0.43213]
[1726564212921,0.43213,2314.3,2314.1,0.43214]
[1726564213117,0.4027,2314.5,2314.0,3.2078]
[1726564213118,0.43213,2314.2,2314.0,3.63996]
[1726564213508,0.43213,2314.3,2314.1,0.43215]
[1726564213818,0.43212,2314.3,2314.1,0.43214]
[1726564214013,1.48292,2314.5,2314.0,3.2078]
[1726564214014,0.4027,2314.5,2314.2,2.7]
[1726564214218,0.83478,2314.5,2314.4,0.43209]
[1726564214523,0.4027,2314.5,2314.4,0.43209]
[1726564214820,3.63986,2314.6,2314.4,0.43209]
[1726564215123,3.63986,2314.6,2314.5,0.43208]
[1726564215124,3.2078,2314.6,2314.5,0.43208]
[1726564215533,3.63986,2314.6,2314.5,0.43208]
[1726564215715,3.63986,2314.6,2314.4,3.13208]
[1726564216121,3.63986,2314.6,2314.3,0.8207]
[1726564216122,4.28769,2315.2,2314.5,6.33988]
[1726564216322,1.1808,2315.4,2314.9,0.432]
[1726564216323,1.88884,2315.3,2314.9,0.432]
[1726564216524,1.88884,2315.3,2315.0,0.43197]
[1726564216525,0.43195,2315.2,2315.0,0.43197]
[1726564216717,0.43196,2315.2,2315.0,0.43197]
[1726564216918,0.809,2315.3,2315.1,0.43195]
[1726564217115,0.809,2315.3,2315.1,0.43196]
[1726564217423,0.43199,2315.0,2314.8,0.4221]
[1726564217616,4.28768,2315.2,2314.8,0.85411]
[1726564218113,1.88886,2315.3,2314.8,0.4221]
[1726564218625,0.43197,2315.1,2314.9,0.43199]
[1726564219118,0.43199,2315.0,2314.8,0.85411]
[1726564219319,0.432,2314.9,2314.8,0.85412]
[1726564219524,0.43199,2315.0,2314.8,0.85412]
[1726564219921,0.43198,2315.1,2314.9,0.432]
[1726564220419,1.07987,2315.2,2314.8,0.4221]
[1726564220722,0.43198,2315.0,2314.8,0.85411]
[1726564221022,0.432,2314.9,2314.8,0.4221]
[1726564221823,0.432,2314.9,2314.8,0.85412]
[1726564222019,0.432,2315.0,2314.8,0.85412]
[1726564222225,0.43198,2315.0,2314.8,0.4221]
[1726564222427,0.432,2314.9,2314.8,0.85411]
[1726564222626,4.28768,2315.2,2314.8,0.85411]
[1726564222627,0.432,2315.0,2314.8,0.85411]
[1726564222927,4.28768,2315.2,2314.8,0.85411]
[1726564223127,0.432,2314.9,2314.8,0.85411]
[1726564223326,0.432,2314.9,2314.8,0.4221]
[1726564223623,0.43199,2315.0,2314.8,0.85412]
[1726564223823,3.2078,2315.2,2314.8,0.85412]
[1726564223824,4.28768,2315.2,2314.8,0.8541]
[1726564224019,3.2078,2315.2,2314.8,0.4221]
[1726564224322,1.91303,2315.3,2314.9,0.43199]
[1726564224516,0.43197,2315.1,2314.9,0.43199]
[1726564224718,1.91303,2315.3,2314.8,0.4221]
[1726564224924,0.43196,2315.2,2315.0,0.43198]
[1726564225125,0.43196,2315.1,2314.9,0.43199]
[1726564225323,0.43196,2315.2,2314.8,0.4221]
[1726564225525,1.91303,2315.3,2315.1,0.43196]
[1726564225526,0.8332,2315.3,2315.1,0.43196]
[1726564225826,0.43197,2315.1,2314.9,0.83959]
[1726564226226,0.43196,2315.2,2315.0,0.43198]
[1726564226529,0.43196,2315.2,2314.9,0.4076]
[1726564227027,0.43197,2315.1,2314.9,0.83959]
[1726564227935,0.43195,2315.2,2315.0,3.63977]
[1726564228223,1.26514,2315.3,2315.1,0.43196]
[1726564228818,0.43194,2315.3,2315.1,0.43196]
[1726564229436,0.43196,2315.2,2315.0,0.43197]
[1726564229726,0.4,2315.3,2315.1,0.43196]
[1726564230052,0.83194,2315.3,2315.1,0.43196]
[1726564230231,0.83194,2315.3,2315.2,0.43194]
[1726564230232,0.4,2315.3,2315.2,0.43194]
[1726564230424,0.43192,2315.4,2315.2,0.43194]
[1726564230624,6.50823825,2315.5,2315.3,0.43193]
[1726564230933,0.4319,2315.5,2315.3,0.43191]
[1726564231129,0.4,2315.6,2315.3,3.13192]
[1726564231434,0.4319,2315.5,2315.3,0.43192]
[1726564231927,0.4,2315.6,2315.1,2.7]
[1726564231928,0.43192,2315.4,2315.1,2.7]
[1726564232161,0.43192,2315.4,2315.2,0.43194]
[1726564232324,0.43193,2315.3,2315.1,3.13195]
[1726564232725,1.07978,2315.4,2315.0,3.2078]
[1726564232932,0.43195,2315.2,2315.0,3.63977]
[1726564233133,0.43194,2315.3,2315.1,0.43196]
[1726564233926,0.43194,2315.3,2315.1,0.43195]
[1726564234248,0.43194,2315.2,2315.0,3.63976]
[1726564234633,0.43194,2315.2,2315.1,0.43196]
[1726564234824,0.43194,2315.2,2315.0,3.2078]
[1726564235027,0.43195,2315.2,2315.0,3.63977]
[1726564235428,3.2078,2315.5,2315.0,3.2078]
[1726564235635,0.43194,2315.3,2315.1,0.43195]
[1726564236928,0.43196,2315.1,2315.0,3.63977]
[1726564237340,0.43196,2315.2,2315.0,7.95897]
[1726564237530,0.43195,2315.2,2315.0,3.63977]
[1726564237727,0.4038,2315.2,2315.0,3.63978]
[1726564237927,0.43196,2315.1,2314.9,0.4076]
[1726564238132,0.83576,2315.2,2315.0,0.43198]
[1726564238353,0.43196,2315.1,2315.0,0.43198]
[1726564238532,1.07978,2315.4,2315.1,0.43195]
[1726564238839,0.43194,2315.2,2315.1,0.43195]
[1726564240044,0.43198,2315.0,2314.9,0.4076]
[1726564240737,0.43198,2315.0,2314.8,0.4221]
[1726564241037,0.43202,2314.8,2314.6,0.43205]
[1726564241243,0.43203,2314.8,2314.6,0.43205]
[1726564241441,0.43201,2314.9,2314.7,0.43204]
[1726564241742,4.0355,2315.1,2314.5,4.18389]
[1726564242033,0.43198,2315.0,2314.8,0.432]
[1726564242238,0.8277,2315.1,2314.9,0.432]
[1726564242239,1.25968,2315.1,2314.9,0.432]
[1726564242463,1.25968,2315.1,2314.9,0.43199]
[1726564242464,1.25967,2315.1,2314.9,0.43199]
[1726564242630,0.4149,2315.1,2314.7,5.9078]
[1726564242831,4.70029,2315.4,2314.9,2.7]
[1726564243030,0.43195,2315.2,2315.0,1.23777]
[1726564243627,0.43193,2315.3,2315.1,0.43196]
[1726564243846,0.8156,2315.4,2315.0,4.0136]
[1726564244043,0.43193,2315.3,2315.1,0.43195]
[1726564244238,0.43193,2315.3,2315.0,4.44557]
[1726564244445,0.43194,2315.3,2315.0,4.44557]
[1726564244649,0.43194,2315.3,2315.1,0.43196]
[1726564245565,0.43195,2315.2,2315.0,4.44557]
[1726564245956,1.89539,2315.4,2315.0,4.0136]
[1726564246150,2.7,2315.3,2314.7,0.43204]
[1726564246351,0.43202,2314.8,2314.7,0.8118]
[1726564247967,0.8084,2314.9,2314.7,1.24384]
[1726564247968,1.24041,2314.9,2314.7,1.24384]
[1726564248462,0.82641,2314.9,2314.7,1.24384]
[1726564248764,0.3944,2314.9,2314.7,1.24384]
[1726564248965,0.8264,2314.9,2314.7,0.8118]
[1726564249166,0.8264,2314.9,2314.7,1.24384]
[1726564249368,0.82641,2314.9,2314.7,0.8118]
[1726564250072,0.3944,2314.9,2314.7,0.8118]
[1726564250455,0.3944,2314.9,2314.5,0.43206]
[1726564250660,0.82641,2314.9,2314.6,0.43205]
[1726564250858,0.82641,2314.9,2314.5,1.22356]
[1726564251059,0.82641,2314.9,2314.6,0.43206]
[1726564252466,0.82642,2314.9,2314.6,0.43205]
[1726564253270,0.82642,2314.9,2314.5,0.7915]
[1726564253271,0.82642,2314.9,2314.7,0.43204]
[1726564253561,0.43202,2314.8,2314.5,0.7915]
[1726564253953,0.43202,2314.8,2314.6,0.43206]
[1726564254165,0.82641,2314.9,2314.6,0.43206]
[1726564254365,0.3944,2314.9,2314.8,0.43202]
[1726564254660,0.8264,2314.9,2314.7,0.43202]
[1726564256461,0.3944,2314.9,2314.5,0.7915]
[1726564256663,0.3944,2314.9,2314.5,4.57168]
[1726564256960,0.8264,2314.9,2314.7,0.43202]
[1726564257466,0.8264,2314.9,2314.5,3.4915]
[1726564257665,0.3944,2314.9,2314.8,0.43202]
[1726564257875,0.8264,2314.9,2314.7,0.43202]
[1726564258467,0.43202,2314.8,2314.5,3.4915]
[1726564258671,0.43202,2314.8,2314.7,0.43204]
[1726564258865,0.82642,2314.9,2314.7,0.43204]
[1726564259165,0.43202,2314.8,2314.7,0.43204]
[1726564259676,0.43202,2314.8,2314.5,3.4915]
[1726564259677,0.82641,2314.9,2314.8,0.43202]
[1726564260157,0.3944,2314.9,2314.8,0.43202]
[1726564260868,3.63978,2315.0,2314.9,0.432]
[1726564261064,3.2078,2315.0,2314.9,0.432]
[1726564263668,3.2078,2315.0,2314.9,0.8371]
[1726564264170,3.2078,2315.0,2314.9,5.1571]
[1726564264572,0.83815,2315.2,2315.1,0.43196]
[1726564264871,0.83815,2315.2,2315.0,0.82297]
[1726564265074,0.43196,2315.1,2315.0,0.82297]
[1726564265259,0.83816,2315.2,2315.0,0.82297]
[1726564265765,0.83816,2315.2,2315.0,0.391]
[1726564265965,0.83816,2315.2,2315.1,0.43196]
[1726564266171,0.83816,2315.2,2315.0,0.82297]
[1726564266768,0.83816,2315.2,2315.0,0.43197]
[1726564266769,0.43196,2315.1,2315.0,0.43197]
[1726564267075,0.83816,2315.2,2315.1,0.43196]
[1726564267570,0.43196,2315.1,2315.0,0.43197]
[1726564267774,0.83816,2315.2,2315.1,0.43196]
[1726564268071,0.4062,2315.2,2315.1,0.43196]
[1726564268267,0.43195,2315.2,2315.1,0.43195]
[1726564268463,3.63974,2315.3,2315.2,0.43194]
[1726564269273,3.63973,2315.3,2315.2,0.43194]
[1726564269464,0.43197,2315.1,2315.0,0.43197]
[1726564270371,4.28763,2315.3,2314.7,5.09556]
[1726564270372,0.43198,2315.0,2314.7,3.6023]
[1726564270565,0.43202,2314.8,2314.7,0.82652]
[1726564272384,1.2536,2314.9,2314.8,0.43202]
[1726564272569,0.43194,2315.2,2315.1,0.43196]
[1726564272780,4.28765,2315.3,2315.2,0.43194]
[1726564272781,0.43194,2315.3,2315.2,0.43194]
[1726564272980,1.07978,2315.4,2315.3,0.43192]
[1726564272981,0.43192,2315.4,2315.3,0.43192]
[1726564274483,0.43192,2315.4,2315.3,0.3843]
[1726564275275,0.43192,2315.4,2315.3,0.81623]
[1726564275499,0.43192,2315.4,2315.3,0.3843]
[1726564276773,0.43193,2315.3,2315.2,0.82133]
[1726564276975,0.43192,2315.4,2315.2,0.3894]
[1726564277168,3.63973,2315.3,2314.8,1.08005]
[1726564277371,0.43195,2315.2,2315.1,0.43195]
[1726564277582,0.43195,2315.2,2314.8,1.08005]
[1726564277583,0.43197,2315.1,2315.0,0.43197]
[1726564277782,1.07983,2315.3,2314.8,1.08005]
[1726564278079,0.3973,2315.2,2314.9,1.08001]
[1726564278273,0.3973,2315.2,2315.1,0.43196]
[1726564278674,0.82924,2315.2,2315.1,0.43196]
[1726564281677,1.07978,2315.4,2314.9,4.2878]
[1726564281880,0.43194,2315.3,2315.2,0.43194]
[1726564282279,0.43193,2315.3,2315.2,0.43193]
[1726564282570,1.48623,2315.5,2315.1,1.07992]
[1726564282774,0.43192,2315.4,2315.3,0.43192]
[1726564285082,0.43191,2315.4,2315.3,0.43191]
[1726564287986,0.4065,2315.5,2315.4,0.43191]
[1726564288193,3.2078,2315.8,2315.4,2.7]
[1726564288380,0.82766,2315.7,2315.5,0.43188]
[1726564288883,0.3958,2315.7,2315.6,0.43187]
[1726564289084,0.82766,2315.7,2315.5,0.43189]
[1726564289382,4.0015,2315.9,2315.8,0.43183]
[1726564289579,4.0015,2315.9,2315.6,2.7]
[1726564289580,3.2078,2316.2,2315.7,3.77963]
[1726564289780,3.5925,2316.2,2316.0,0.43178]
[1726564290177,3.5925,2316.2,2316.1,0.43178]
[1726564290378,4.02426,2316.2,2315.9,0.43181]
[1726564290683,3.5925,2316.2,2316.0,0.43179]
[1726564291886,4.02426,2316.2,2315.9,0.4318]
[1726564292191,4.02426,2316.2,2315.7,3.5146]
[1726564292192,3.5925,2316.2,2315.7,3.5146]
[1726564292588,3.5925,2316.2,2315.9,0.43181]
[1726564292791,4.67192,2316.2,2315.7,0.8146]
[1726564292988,0.43181,2316.0,2315.7,1.24644]
[1726564293178,0.43182,2315.9,2315.7,0.8146]
[1726564293378,0.7866,2315.9,2315.7,1.24644]
[1726564293685,0.4128,2315.8,2315.7,1.24644]
[1726564294189,0.4128,2315.8,2315.7,5.56484]
[1726564295485,0.4128,2315.8,2315.7,1.24644]
[1726564295888,0.84464,2315.8,2315.6,3.13186]
[1726564296381,0.84465,2315.8,2315.6,0.43187]
[1726564296582,0.84465,2315.8,2315.4,3.4905]
[1726564296881,0.84465,2315.8,2315.6,0.43186]
[1726564296882,0.84464,2315.8,2315.6,0.43186]
[1726564297123,0.43185,2315.7,2315.5,0.43188]
[1726564297995,1.49242,2315.8,2315.4,0.7905]
[1726564298191,0.43188,2315.6,2315.4,1.2224]
[1726564298587,1.49242,2315.8,2315.5,0.43189]
[1726564298793,0.43187,2315.7,2315.5,0.43189]
[1726564299290,0.43185,2315.7,2315.5,0.43189]
[1726564299795,0.4128,2315.8,2315.4,3.4905]
[1726564299796,0.84464,2315.8,2315.4,3.4905]
[1726564299986,0.84464,2315.8,2315.7,0.43185]
[1726564300391,0.84464,2315.8,2315.6,0.43185]
[1726564300584,0.84464,2315.8,2315.7,0.43185]
[1726564300786,0.84464,2315.8,2315.6,0.43186]
[1726564301199,0.43186,2315.7,2315.4,3.4905]
[1726564301388,0.4128,2315.8,2315.6,0.43186]
[1726564301389,0.84465,2315.8,2315.6,0.43186]
[1726564301792,0.84465,2315.8,2315.7,0.43185]
[1726564302092,0.84464,2315.8,2315.7,0.43185]
[1726564302290,0.84464,2315.8,2315.4,3.4905]
[1726564302291,0.84465,2315.8,2315.6,0.43186]
[1726564302499,0.84465,2315.8,2315.7,0.43185]
[1726564302801,0.43186,2315.7,2315.6,0.43186]
[1726564302988,0.43185,2315.7,2315.6,0.43186]